Cogmind - Beta 15 @@@ ROGUE MODE // 2025.10.20 @ 18:16:07 Player: DietSnapple Result: Destroyed by EB-0UZ(R) with Subdweller Beam Cannon Performance ------------- Evolutions (0) 0 Regions Visited (2) 400 Robots Destroyed (30) 150 Value Destroyed (679) 679 Prototype IDs (0) 0 Alien Tech Used (0) 0 Bonus (0) 0 TOTAL SCORE: 1229 Bonus ------- None Cogmind --------- Core Integrity 0/250 Matter 199/300 Energy 100/100 System Corruption 0% Temperature Cool (9) Movement Treading (160) Location -10/Subcaves Parts ------- > --- POWER (1) -------- (None) > --- PROPULSION (2) --- Improved Treads Improved Treads > --- UTILITY (2) ------ Large Storage Unit > --- WEAPON (2) ------- Heavy Assault Rifle Heavy Assault Rifle > --- INVENTORY (15) --- Light Treads Improved Treads Improved Treads Huge Storage Unit Signal Interpreter Signal Interpreter ECM Suite Light Armor Plating Makeshift Light Armor Plating Hacking Suite Hacking Suite Riot Gun Heavy Assault Rifle Ripper Peak State ------------ > --- POWER ------------ Ion Engine > --- PROPULSION ------- Improved Treads Improved Treads > --- UTILITY ---------- Large Storage Unit Light Armor Plating > --- WEAPON ----------- Heavy Assault Rifle Ripper > --- INVENTORY -------- Light Treads Improved Treads Improved Treads Huge Storage Unit Signal Interpreter Signal Interpreter ECM Suite Light Armor Plating Makeshift Light Armor Plating Hacking Suite Hacking Suite Riot Gun Heavy Assault Rifle [Rating: 15] Favorites ----------- Power Ion Engine Engine Ion Engine Propulsion Improved Treads Treads Improved Treads Leg Aluminum Leg Utility Large Storage Unit Device Sensor Array Storage Large Storage Unit Protection Light Armor Plating Weapon Heavy Assault Rifle Energy Gun Small Laser Ballistic Gun Heavy Assault Rifle Launcher Grenade Launcher Slashing Weapon Ripper Build | -11 -10 -10 ------- Run | Yrd Mat Sub Slots Evolved . | . . . Power . | . . . Propulsion . | . . . Utility . | . . . Weapon . | . . . Parts Attached 22 | 6 9 7 Power 2 | 1 1 . Engine 2 | 1 1 . Core . | . . . Reactor . | . . . Propulsion 6 | 2 2 2 Treads 4 | . 2 2 Leg 2 | 2 . . Wheel . | . . . Hover . | . . . Flight . | . . . Utility 5 | 1 4 . Device 1 | . 1 . Storage 3 | 1 2 . Processor . | . . . Hackware . | . . . Protection 1 | . 1 . Artifact . | . . . Weapon 9 | 2 2 5 Energy Gun 2 | 1 . 1 Energy Cannon . | . . . Ballistic Gun 5 | 1 2 2 Ballistic Cannon . | . . . Launcher 1 | . . 1 Special Weapon . | . . . Impact Weapon . | . . . Slashing Weapon 1 | . . 1 Piercing Weapon . | . . . Special Melee Weapon . | . . . Unidentified Prototypes . | . . . Parts Lost 4 | . . 4 Power 1 | . . 1 Propulsion . | . . . Utility 1 | . . 1 Weapon 2 | . . 2 Highest Loss Streak 2 | . . 2 To Critical Strikes 1 | . . 1 Average Backups 11 | 2 9 14 Power . | . . . Propulsion 3 | 1 3 3 Utility 5 | . 2 8 Weapon 2 | . 2 3 Tool/Special . | . . . Unused Backups 13 | . 4 9 Power . | . . . Propulsion 4 | . 3 1 Utility 8 | . . 8 Weapon 1 | . 1 . Tool/Special . | . . . Average Slot Usage (%) 98 | . 97 99 Engine 13 | . 14 13 Treads 27 | . 27 28 Device 4 | . 9 . Storage 14 | . 14 14 Protection 8 | . 1 13 Ballistic Gun 22 | . 27 18 Launcher 4 | . . 8 Peak Build Rating 15 | 6 13 15 Average Rating 11 | 4 11 12 On Entrance 6 | . 6 13 Naked Turns . | . . . Heaviest Build 34 | 12 34 34 Greatest Support 46 | 20 46 46 Greatest Overweight (x) 3 | . 3 . Average Overweight (x) . | . . . Largest Inventory Capacity 15 | 8 15 15 Average Capacity 13 | 6 11 15 Most Carried 15 | 6 15 15 Average Carried 11 | 3 9 14 Final Capacity 15 | 8 15 15 Final Carried 15 | 6 15 14 Class Distribution -------------------- 100% | Mutant Dominant Class ---------------- Mutant | -10/Materials Mutant | -10/Subcaves Resources | -11 -10 -10 ----------- Run | Yrd Mat Sub Matter Collected 815 | 231 333 251 Remotely . | . . . Salvage Created 697 | . 478 219 Parts 58 | . 36 22 Haulers Intercepted 1 | . 1 . Recyclers Shooed . | . . . Parts Field Recycled . | . . . Retrieved Matter . | . . . Parts Self-Destructed 6 | . . 6 Prevented . | . . . Kills | -11 -10 -10 ------- Run | Yrd Mat Sub Combat Hostiles Destroyed 25 | . 14 11 Guns 17 | . 14 3 AOE 8 | . . 8 Classes Destroyed 6 | . 5 1 Hauler 1 | . 1 . Operator 3 | . 3 . Watcher 1 | . 1 . Swarmer 13 | . 9 4 Grunt 5 | . 5 . Subdweller 7 | . . 7 Best Kill Streak 7 | . 7 4 Combat Bots Only 7 | . 7 4 Max Kills in Single Turn 2 | . 1 2 Gunslinging . | . . . Exploded 2 | . . 2 Melee . | . . . Uniques/NPCs Destroyed . | . . . Combat | -11 -10 -10 -------- Run | Yrd Mat Sub Hostile Shots Fired 121 | . 49 72 Missed 39 | . 14 25 Hits 82 | . 35 47 Projectile 82 | . 35 47 Critical Strikes 2 | . . 2 Damage Taken 1247 | . 320 927 Core 259 | . 83 176 Absorbed by Shields . | . . . Core Remaining (%) 100 | 100 . . Volleys Fired 76 | . 38 38 Largest 2 | . 2 2 Hottest 50 | . 46 50 Shots Fired 126 | . 76 50 Gun 107 | . 76 31 Cannon . | . . . Launcher 19 | . . 19 Special . | . . . Kinetic 106 | . 76 30 Thermal . | . . . Explosive 19 | . . 19 Electromagnetic 1 | . . 1 Robot Hit Streak 26 | . 11 26 Robot Miss Streak 5 | . 5 2 Penetration Max . | . . . Secondary Targets 4 | . 3 1 Max Gunslinging Chain 1 | . 1 1 Shots Hit Robots 84 | . 45 39 Core Hits 45 | . 24 21 Critical Kills . | . . . Critical Parts Destroyed 1 | . 1 . Critical Strikes 1 | . 1 . Destroy 1 | . 1 . Melee Attacks 2 | . . 2 Impact . | . . . Slashing 2 | . . 2 Piercing . | . . . Sneak Attacks . | . . . Combat Hostiles . | . . . Follow-up Attacks . | . . . Damage Inflicted 2011 | . 701 1310 Guns 1121 | . 697 424 Cannons . | . . . Explosions 886 | . . 886 Melee . | . . . Ramming 4 | . 4 . Kinetic 1109 | . 697 412 Thermal . | . . . Explosive 886 | . . 886 Electromagnetic 12 | . . 12 Impact . | . . . Slashing . | . . . Piercing . | . . . Highest Corruption . | . . . Average Corruption . | . . . Corruption Purged . | . . . Corruption Blocked . | . . . Overload Shots . | . . . Overflow Damage . | . . . Projectiles . | . . . Explosions . | . . . Melee . | . . . Knockbacks 1 | . 1 . Impact 1 | . 1 . Kinetic . | . . . Secondary . | . . . Self-Inflicted Damage 77 | . . 77 Shots 3 | . . 3 Rammed 1 | . 1 . Targets Rammed 1 | . 1 . Kicked . | . . . Crushed . | . . . Highest Temperature 4 | . 4 . Average Temperature 3 | . 3 . Received Heat Transfer 195 | . 66 129 Siege Activations . | . . . Martial Activations . | . . . Shielding Activations . | . . . Robots Disrupted . | . . . Combat Hostiles . | . . . Robots Corrupted . | . . . Combat Hostiles . | . . . Parts Fried . | . . . Impact Corruptions . | . . . Robots Melted . | . . . Combat Hostiles . | . . . Parts Melted . | . . . Heat Transferred . | . . . Parts Sabotaged . | . . . Parts Stolen . | . . . Parts Stripped . | . . . Power Chain Reactions . | . . . Alert | -11 -10 -10 ------- Run | Yrd Mat Sub Maximum Alert Level . | . . . Low Security (%) 100 | 100 100 . Level 1 . | . . . Level 2 . | . . . Level 3 . | . . . Level 4 . | . . . Level 5 . | . . . High Security . | . . . Max Security . | . . . Peak Influence 180 | . 180 . Initial . | . . . Average 59 | . 63 . Influence Increases 684 | . 499 185 Destroy 0b10 Robot/C 360 | . 280 80 Destroy 0b10 Robot/NC 25 | . 25 . Destroy Leader 54 | . 54 . Successful Hack 33 | . 33 . Disable Machine 30 | . 30 . Destroy Structure 2 | . 2 . Partial Spotted 15 | . 15 . Lose Combat Pursuer 165 | . 60 105 Influence Decreases 684 | . 346 338 Entered New Map 74 | . . 74 Time Decay 580 | . 346 234 Lost Part 30 | . . 30 Squads Dispatched 3 | . 3 . Investigation . | . . . Extermination . | . . . Reinforcement 3 | . 3 . Assault . | . . . Garrison . | . . . Intercept . | . . . Searches Triggered . | . . . Construction Impeded . | . . . Haulers Reinforced . | . . . Active Scanning Responses . | . . . Cargo Convoy Interrupts . | . . . Stealth | -11 -10 -10 --------- Run | Yrd Mat Sub Distress Signals 3 | . 3 . Communications Jammed . | . . . Distress Signals . | . . . Times Spotted 51 | . 33 18 Peak Tracking Total 7 | . 7 5 Tactical Retreats 6 | . 3 3 Traps | -11 -10 -10 ------- Run | Yrd Mat Sub Traps Triggered 1 | . . 1 Indirectly . | . . . Trap Hack Attempts . | . . . Triggered . | . . . Disarmed . | . . . Reprogrammed . | . . . Reused . | . . . Traps Extracted . | . . . Installed . | . . . Triggered . | . . . Machines | -11 -10 -10 ---------- Run | Yrd Mat Sub Machines Disabled 4 | . 2 2 Max in Single Turn 2 | . 1 2 Machines Repaired . | . . . Machines Dismantled . | . . . Machines Sabotaged . | . . . Overloaded Fab Kills . | . . . Hacking | -11 -10 -10 --------- Run | Yrd Mat Sub Machines Accessed 6 | . 5 1 Terminals 5 | . 5 . Fabricators . | . . . Repair Stations . | . . . Recycling Units . | . . . Scanalyzers . | . . . Garrison Access . | . . . Total Hacks 18 | . 15 3 Successful 12 | . 9 3 Failed 6 | . 6 . Catastrophic . | . . . Database Lockouts . | . . . Manual 9 | . 9 . Terminals 15 | . 15 . Fabricators . | . . . Repair Stations . | . . . Recycling Units . | . . . Scanalyzers . | . . . Garrison Access . | . . . Terminal Hacks 8 | . 5 3 Record 4 | . 1 3 Locate Traps 3 | . 3 . Hauler Manifests 1 | . 1 . Fabricator Hacks . | . . . Repair Station Hacks . | . . . Recycling Unit Hacks . | . . . Scanalyzer . | . . . Garrison Access Hacks . | . . . Unauthorized Hacks 4 | . 4 . Terminals 4 | . 4 . Assimilate 1 | . 1 . Botnet 2 | . 2 . Operators 1 | . 1 . Fabricators . | . . . Repair Stations . | . . . Recycling Units . | . . . Scanalyzers . | . . . Garrison Access . | . . . Data Cores Recovered . | . . . Used . | . . . Hacking Detections 4 | . 4 . Full Trace Events . | . . . Feedback Events . | . . . Feedback Blocked . | . . . Robot Schematics Acquired . | . . . Robots Built . | . . . Authchips . | . . . Time . | . . . Total Robot Build Rating . | . . . Part Schematics Acquired . | . . . Parts Built . | . . . Authchips . | . . . Time . | . . . Total Part Build Rating . | . . . Parts Repaired . | . . . Time . | . . . Parts Recycled . | . . . Recycled Matter . | . . . Retrieved Matter . | . . . Retrieved Components . | . . . Parts Scanalyzed . | . . . Part Schematics Acquired . | . . . Parts Damaged . | . . . Bothacking | -11 -10 -10 ------------ Run | Yrd Mat Sub Used RIF Installer . | . . . Robots Hacked . | . . . Non-combat . | . . . Combat . | . . . Robot Hacks Applied . | . . . Relay Couplers Released . | . . . Fabnet Peak Effective % . | . . . Robots Rewired . | . . . Allies Hacked . | . . . Hacks Repelled . | . . . Allies | -11 -10 -10 -------- Run | Yrd Mat Sub Total Allies . | . . . Largest Group . | . . . Highest-Rated Group . | . . . Highest-Rated Ally . | . . . Total Orders . | . . . Ally Attacks . | . . . Total Damage . | . . . Kills . | . . . Allies Corrupted . | . . . Allies Melted . | . . . Intel | -11 -10 -10 ------- Run | Yrd Mat Sub Active Infowar (turns) 1156 | . 1156 . Sensors 1156 | . 1156 . Robot Analysis Total . | . . . Derelict Logs Recovered . | . . . Drone Launches . | . . . Drone Recoveries . | . . . Exploration | -11 -10 -10 ------------- Run | Yrd Mat Sub Turns Passed 3672 | 96 1630 1946 Spaces Moved 2120 | 74 900 1146 Core 12 | 10 2 . Treads 2038 | . 892 1146 Legs 70 | 64 6 . Wheels . | . . . Hover . | . . . Flight . | . . . Fastest Speed 50 | 50 120 160 Average Speed 158 | 110 159 160 Slowest Speed 200 | 120 200 160 Overloaded Moves . | . . . Propulsion Burnouts . | . . . Robots Hopped . | . . . Potential Cave-ins . | . . . Cave-ins Triggered . | . . . Exploration Rate (%) 51 | 4 96 54 Regions Visited 2 Branch Regions 1 Pre-discovered Areas . | . . . Known Exits Taken . | . . . Unknown Exits Taken 2 | 1 1 . Scrap Searched 4 | . . 4 Spaces Dug . | . . . Terrain Destroyed 116 | . . 116 Melee . | . . . Projectile . | . . . AOE 116 | . . 116 Terrain Rammed . | . . . Walls Destroyed . | . . . Machines Disabled . | . . . Actions | -11 -10 -10 --------- Run | Yrd Mat Sub Total 2310 | 85 1020 1205 Wait 48 | . 44 4 Move 2118 | 73 899 1146 Hop . | . . . Pick Up 24 | 6 14 4 Fast Attach 10 | 6 4 . Attach 4 | . 2 2 Detach 5 | . 5 . Swap 9 | . 3 6 Drop 13 | . 10 3 Fire 76 | . 38 38 Melee 2 | . . 2 Ram . | . . . Kick . | . . . Crush 1 | . 1 . Escape Stasis . | . . . Rewire . | . . . Trap . | . . . Miscellaneous . | . . . Route ------- -11/Scrapyard -10/Materials (discovered 6 exits: [*Mat x3] / [*Min x2] / *Sub) -10/Subcaves History --------- Turn | Location | Event 4 | -11/Scrapyard | Discovered new exit (range 16) 97 | -11/Scrapyard | Entered Materials 305 | -10/Materials | Build established: Mutant 687 | -10/Materials | Destroyed 7 combat bots 807 | -10/Materials | Discovered new exit (range 6) 900 | -10/Materials | Discovered new exit (range 11) 900 | -10/Materials | Discovered new exit (range 12) 962 | -10/Materials | Discovered new exit (range 12) 1324 | -10/Materials | Discovered new exit (range 14) 1638 | -10/Materials | Discovered new exit (range 7) 1727 | -10/Materials | Entered Subcaves 1966 | -10/Subcaves | Ambushed by Subdweller buried in earth 1967 | -10/Subcaves | Core integrity fell below 50% 2207 | -10/Subcaves | Shifting Twisted Machinery released Battle Rifle 2215 | -10/Subcaves | Shifting Twisted Machinery released Shrapnel Trap 2249 | -10/Subcaves | Visited Clippyterm 2254 | -10/Subcaves | Learned 40 Factory zone layouts 3383 | -10/Subcaves | Core integrity fell below 20% 3673 | -10/Subcaves | Destroyed by EB-0UZ(R) with Subdweller Beam Cannon Last Messages --------------- 03339_ 8N-LE0(u) deconstructs Twisted Machinery. 03340_ XQ-UJE(u) builds Twisted Machinery. 03341_ 8N-LE0(u) deconstructs Twisted Machinery. 03342_ XQ-UJE(u) builds Twisted Machinery. 03343_ 8N-LE0(u) deconstructs Twisted Machinery. 03344_ XQ-UJE(u) builds Twisted Machinery. 03345_ 8N-LE0(u) deconstructs Twisted Machinery. 03346_ XQ-UJE(u) builds Twisted Machinery. 03347_ 8N-LE0(u) deconstructs Twisted Machinery. 03390_ 74-WKH(R) destroyed. 03395_ Acquired 47 matter. 03405_ Subatomizers dissect the Sub. Optics. 03472_ Subatomizers dissect the Sub. Power Source. 03655_ DT-ES0(R) destroyed. 03655_ Switching to secondary target: 67-DQV(R). 03656_ Critical hit (Destroy). 03656_ Ion Engine destroyed. 03664_ Acquired 38 matter. 03665_ 67-DQV(R) affixes Scrap Shield Fragment to Scrap Shield. 03669_ Lgt. Armor Plating destroyed. Map ----- +----------------------------------------------------+ | ?????????????????????????????????????????????????? | | ?????????????????????????????????????????????????? | | ?????????????????????????????????????????????????? | | ?????????????????????????????????????????????????? | | ?????????????????????????????????????????????????? | | ?????????????????????????????????????????????????? | | ?????????????????????????????????????????????????? | | ?????????????????????????????????????????????????? | | ?????????????????????????????????????????????????? | | ?????????????????????????????????????????????????? | | ?????????????????????????????????????????????????? | | ?????????????????????????????????????????????????? | | ?????????????????????????????????????????????????? | | ?????????????????????????????????????????????????? | | ?????????????????????????????????????????????????? | | ?????????????????????????????????????????????????? | | ?????????????????????????????????????????????????? | | ???????????????????????????####??????????????????? | | ???????????????????????????# #??????????????????? | | ???????????????????????????# #??????????????????? | | ??????????????????######???# #????######### ????? | | ??????????????????#R < #### #???? ??#??? | | ????????????????###& # #???? #?? #??? | | ????????????????# " < R #???? ## ??? | | ????????????????# =R #???? #??? | | ?????????????????#" ##@# ##### #??? | | ????????????????????????### ## ? | | ?????????????????????# # # ? | | ????????????????????""" " | | ??????????????????? " ## #?? | | ?????????????????? ## #?## #??? | | ?????????????????# ???## ?### #??? | | ????????????????????????#??# #??? | | ???????????????????????????## ##??? | | ????????????????????????????## ######???? | | ?????????????????????????????## #?###????? | | ??????????????????????????????#### # ##???? | | ?????????????????????????????????# # #???? | | ?????????????????????????????????# # # #??? | | ?????????????????????????????????## ##?### ##??? | | ?????????????????????????????????# #???# ##??? | | ????????????????????????????##???# ##???# #??? | | ?????????????????????????##?# #??## #???# #???? | | ????????????????????????## ## #### ###?# #???? | | ????????????????????????# ## ### ##??? | | ???????????????????????## # #??? | | ???????????????????????# ##??? | | ??????????????????????# #??? | | ?????????????????????# #### ## ##?? | | ??????????????????????# ?????# ## #?? | +----------------------------------------------------+ Best States ------------- Heat Dissipation 25 Energy Generation 10 Energy Capacity 250 Matter Stores 300 Matter Capacity 300 Sight Range 16 Robot Scan Range 14 Terrain Scan Density 10 Armor Coverage 150 Evasion (%) 50 Recoil Reduction 2 Item Schematics ----------------- None Robot Schematics ------------------ None Fabricated ------------ Nothing Repaired ---------- Nothing Alien Tech Used ----------------- None Achievements -------------- None Challenges ------------ None Game ------ Seed DamperMinesnifferMeganuke Manual? 0 Play Time 00:20:34 Cumulative 42.0 hours Start 2025.10.20 @ 14:07:09 End 2025.10.20 @ 18:16:07 Sessions 3 Manual Loads 0 Difficulty Rogue Special Mode None Game No. 103 Rogue 96 Adventurer 7 Explorer 0 Win Type - Total 1 Types 1/0/0/0/0/0/0/0/0/0 Lore% 18 Gallery% 34 Achievement% 32 Wizard Run 0 Options --------- Layout 0 ASCII 0 Keyboard 1 Movement Vi Keybinds 0 Fullscreen 1 Font 18/SmallcapsGlow Map View 112x50 Zoom Use 0% Tactical HUD 1 Map Filters NONE Filters NONE Steam X RUN: 66b59e3b-5fb3-4d90-a4dc-1f9f4bc90799